Cogmind - Beta 16 @@@ ROGUE MODE // 2025.11.02 @ 09:06:27 Player: H3-MLN Result: Destroyed by L9-47P(g) with Salvaging Laser Performance ------------- Evolutions (0) 0 Regions Visited (5) 1000 Robots Destroyed (43) 215 Value Destroyed (1594) 1594 Prototype IDs (26) 520 Alien Tech Used (0) 0 Bonus (1278) 1278 TOTAL SCORE: 4607 Bonus ------- Follower Combat Kills 526 Registered with UFD 300 Met Optimus in HQ 500 Friendly Fire -48 Cogmind --------- Core Integrity 0/250 Matter 290/300 Energy 36/290 System Corruption 0% Temperature Hot (212) Movement Walking (170) Ox1 Location -8/Scraptown Parts ------- > --- POWER (1+1) ------ Improved Deuterium Engine (+) > --- PROPULSION (2) --- Overtuned Titanium Leg Overtuned Titanium Leg > --- UTILITY (2) ------ Large Storage Unit Makeshift Light Armor Plating > --- WEAPON (2) ------- (None) > --- INVENTORY (15) --- Ballwheel Rocket Booster Rocket Booster Deep Structural Scanner Experimental Terrain Scanner A0-MCA's Component Scanner Tech Extrapolator Scrapoid Pod Helical Railgun LU-1G1's Laser Shovel PL-3XN's Ring of Power Peak State ------------ > --- POWER ------------ Light Deuterium Engine Improved Deuterium Engine > --- PROPULSION ------- Overtuned Titanium Leg Overtuned Titanium Leg > --- UTILITY ---------- Large Storage Unit Makeshift Light Armor Plating > --- WEAPON ----------- Powered Cannon > --- INVENTORY -------- Ballwheel Rocket Booster Rocket Booster Deep Structural Scanner Experimental Terrain Scanner A0-MCA's Component Scanner Tech Extrapolator Scrapoid Pod Helical Railgun LU-1G1's Laser Shovel PL-3XN's Ring of Power [Rating: 41] Favorites ----------- Power Subdweller Power Source Engine Subdweller Power Source Propulsion Aluminum Leg Leg Aluminum Leg Wheel Armored Wheel Utility Large Storage Unit Device Scrapoid Pod Storage Large Storage Unit Protection Improved Light Armor Plating Weapon Subdweller Machine Gun Energy Gun Subdweller Laser Energy Cannon Subdweller Beam Cannon Ballistic Gun Subdweller Machine Gun Launcher Subdweller Shrapnel Launcher Special Weapon CPS Tube Special Melee Weapon Improved Datajack Build | -11 -10 -10 -10 -8 -8 ------- Run | Yrd Mat Min Sub Rec Scr Slots Evolved . | . . . . . . Power . | . . . . . . Propulsion . | . . . . . . Utility . | . . . . . . Weapon . | . . . . . . Parts Attached 37 | 6 1 . 13 1 16 Power 6 | 1 . . 2 . 3 Engine 6 | 1 . . 2 . 3 Core . | . . . . . . Reactor . | . . . . . . Propulsion 7 | 2 . . . . 5 Treads . | . . . . . . Leg 5 | 2 . . . . 3 Wheel 2 | . . . . . 2 Hover . | . . . . . . Flight . | . . . . . . Utility 7 | 1 1 . 2 1 2 Device 2 | 1 . . . . 1 Storage 3 | . 1 . 2 . . Processor . | . . . . . . Hackware . | . . . . . . Protection 2 | . . . . 1 1 Artifact . | . . . . . . Weapon 17 | 2 . . 9 . 6 Energy Gun 3 | 1 . . 2 . . Energy Cannon 3 | . . . 1 . 2 Ballistic Gun 7 | 1 . . 5 . 1 Ballistic Cannon . | . . . . . . Launcher 1 | . . . 1 . . Special Weapon 2 | . . . . . 2 Impact Weapon . | . . . . . . Slashing Weapon . | . . . . . . Piercing Weapon . | . . . . . . Special Melee Weapon 1 | . . . . . 1 Unidentified Prototypes 1 | . . . . . 1 Parts Lost 8 | . . . 5 . 3 Power 2 | . . . 1 . 1 Propulsion 2 | . . . 1 . 1 Utility 1 | . . . 1 . . Weapon 3 | . . . 2 . 1 Highest Loss Streak 3 | . . . 3 . 2 To Critical Strikes . | . . . . . . Average Backups 10 | 1 3 4 11 12 9 Power 1 | . 1 1 2 1 . Propulsion . | . . . . 1 . Utility 4 | . 1 1 3 5 4 Weapon 3 | . 1 2 4 4 2 Tool/Special . | . . . . . . Unused Backups 27 | . 1 . 3 3 20 Power 2 | . . . 1 1 . Propulsion 3 | . . . . . 3 Utility 15 | . 1 . 1 . 13 Weapon 5 | . . . 1 2 2 Tool/Special 2 | . . . . . 2 Average Slot Usage (%) 81 | . 95 100 99 85 73 Engine 12 | . 14 14 13 14 11 Leg 14 | . 28 28 27 14 10 Wheel 4 | . . . . . 7 Device 3 | . 14 14 . . 4 Storage 14 | . 9 14 27 17 9 Protection 7 | . . . . 10 9 Energy Gun 2 | . 14 14 11 . . Energy Cannon 2 | . . . 5 3 1 Ballistic Gun 17 | . 14 14 10 24 17 Peak Build Rating 41 | 6 7 7 14 16 41 Average Rating 15 | 3 6 7 11 15 17 On Entrance 8 | . 6 7 7 13 16 Avg Prop Armor Cover (%) 7 | . . . . . 7 Naked Turns . | . . . . . . Heaviest Build 48 | 8 18 18 43 40 48 Greatest Support 38 | 20 20 20 20 10 38 Greatest Overweight (x) 4 | . . . 4 3 3 Average Overweight (x) 1 | . . . . 3 1 Largest Inventory Capacity 15 | 5 10 10 15 15 15 Average Capacity 12 | 5 8 10 12 15 12 Most Carried 15 | 4 4 6 15 15 15 Average Carried 11 | 1 3 4 11 14 11 Final Capacity 15 | 5 10 10 15 15 15 Final Carried 15 | 3 4 6 15 15 15 Class Distribution -------------------- 96% | Mutant 3% | Scavenger-Mutant Dominant Class ---------------- Mutant | -10/Materials Mutant | -10/Mines Mutant | -10/Subcaves Mutant | -8/Recycling Mutant | -8/Scraptown Resources | -11 -10 -10 -10 -8 -8 ----------- Run | Yrd Mat Min Sub Rec Scr Matter Collected 1750 | 235 . 53 412 86 964 Remotely . | . . . . . . Salvage Created 1989 | 16 . 72 596 170 1135 Parts 107 | 5 . 3 41 13 45 Haulers Intercepted . | . . . . . . Recyclers Shooed 1 | 1 . . . . . Parts Field Recycled . | . . . . . . Retrieved Matter . | . . . . . . Parts Self-Destructed 13 | . . . 11 . 2 Prevented . | . . . . . . Parts Restored . | . . . . . . Kills | -11 -10 -10 -10 -8 -8 ------- Run | Yrd Mat Min Sub Rec Scr Combat Hostiles Destroyed 40 | . . . 19 3 18 Guns 14 | . . . 12 2 . Cannons 23 | . . . 5 1 17 AOE 2 | . . . 2 . . Classes Destroyed 11 | 1 . 1 3 1 5 Tunneler 1 | 1 . . . . . Recycler 2 | . . 1 . . 1 Swarmer 4 | . . . 4 . . Sentry 3 | . . . . 3 . Artisan 1 | . . . 1 . . Subdweller 15 | . . . 15 . . Federalist 3 | . . . . . 3 Explorer 2 | . . . . . 2 Ranger 1 | . . . . . 1 Guru 1 | . . . . . 1 Scrapper 11 | . . . . . 11 Best Kill Streak 9 | 1 . 1 4 1 9 Combat Bots Only 9 | . . . 4 1 9 Max Kills in Single Turn 2 | 1 . 1 2 1 1 Gunslinging . | . . . . . . Exploded 2 | . . . 2 . . Melee . | . . . . . . Uniques/NPCs Destroyed . | . . . . . . Combat | -11 -10 -10 -10 -8 -8 -------- Run | Yrd Mat Min Sub Rec Scr Hostile Shots Fired 143 | . . . 76 . 67 Missed 52 | . . . 28 . 24 Hits 91 | . . . 48 . 43 Projectile 91 | . . . 48 . 43 Critical Strikes 4 | . . . 1 . 3 Damage Taken 1504 | . . . 749 . 755 Core 253 | . . . 74 . 179 Absorbed by Shields . | . . . . . . Core Remaining (%) 100 | 100 . . . . . Volleys Fired 122 | 2 . 4 54 3 59 Largest 2 | 2 . 2 2 2 2 Hottest 140 | 70 . 70 140 110 110 Shots Fired 171 | 4 . 8 95 5 59 Gun 95 | 4 . 8 78 4 1 Cannon 68 | . . . 10 1 57 Launcher 7 | . . . 7 . . Special 1 | . . . . . 1 Kinetic 58 | 2 . 4 47 4 1 Thermal 112 | 2 . 4 48 1 57 Explosive . | . . . . . . Electromagnetic . | . . . . . . Robot Hit Streak 11 | 3 . 6 11 7 10 Robot Miss Streak 3 | . . 2 3 . 2 Penetration Max . | . . . . . . Secondary Targets . | . . . . . . Shots Hit Robots 101 | 3 . 6 57 3 32 Core Hits 59 | 2 . 2 36 3 16 Critical Kills 2 | . . . . . 2 Critical Parts Destroyed . | . . . . . . Critical Strikes 4 | 1 . 1 . . 2 Burn 2 | 1 . 1 . . . Meltdown 2 | . . . . . 2 Melee Attacks 1 | . . . . . 1 Impact . | . . . . . . Slashing . | . . . . . . Piercing . | . . . . . . Sneak Attacks 1 | . . . . . 1 Combat Hostiles . | . . . . . . Follow-up Attacks . | . . . . . . Damage Inflicted 3479 | 41 . 74 1741 75 1548 Guns 1171 | 41 . 74 1009 47 . Cannons 1793 | . . . 217 28 1548 Explosions 515 | . . . 515 . . Melee . | . . . . . . Ramming . | . . . . . . Kinetic 1116 | 15 . 37 1017 47 . Thermal 2363 | 26 . 37 724 28 1548 Explosive . | . . . . . . Electromagnetic . | . . . . . . Impact . | . . . . . . Slashing . | . . . . . . Piercing . | . . . . . . Highest Corruption . | . . . . . . Average Corruption . | . . . . . . Corruption Purged . | . . . . . . Corruption Blocked . | . . . . . . Overload Shots . | . . . . . . Overflow Damage 95 | . . . 7 . 88 Projectiles 88 | . . . . . 88 Explosions 7 | . . . 7 . . Melee . | . . . . . . Knockbacks . | . . . . . . Impact . | . . . . . . Kinetic . | . . . . . . Secondary . | . . . . . . Self-Inflicted Damage 25 | . . . 25 . . Shots 1 | . . . 1 . . Rammed . | . . . . . . Targets Rammed . | . . . . . . Kicked . | . . . . . . Crushed . | . . . . . . Highest Temperature 379 | 18 . 27 9 33 379 Average Temperature 118 | 10 . 12 4 18 137 Received Heat Transfer 512 | . . . 78 . 434 Effects 3 | . . . . . 3 Interference 1 | . . . . . 1 Short Circuit 2 | . . . . . 2 Siege Activations . | . . . . . . Martial Activations . | . . . . . . Shielding Activations . | . . . . . . Robots Disrupted . | . . . . . . Combat Hostiles . | . . . . . . Robots Corrupted . | . . . . . . Combat Hostiles . | . . . . . . Parts Fried . | . . . . . . Impact Corruptions . | . . . . . . Robots Melted 2 | . . . . . 2 Combat Hostiles 1 | . . . . . 1 Parts Melted 11 | . . . 2 . 9 Heat Transferred 1328 | 148 . 185 921 37 37 Parts Sabotaged . | . . . . . . Parts Stolen . | . . . . . . Parts Stripped . | . . . . . . Power Chain Reactions . | . . . . . . Alert | -11 -10 -10 -10 -8 -8 ------- Run | Yrd Mat Min Sub Rec Scr Maximum Alert Level . | . . . . . . Low Security (%) 100 | 100 100 100 . 100 . Level 1 . | . . . . . . Level 2 . | . . . . . . Level 3 . | . . . . . . Level 4 . | . . . . . . Level 5 . | . . . . . . High Security . | . . . . . . Max Security . | . . . . . . Peak Influence 107 | 5 . . . 107 . Initial 76 | . . . . 76 . Average 11 | . . . . 13 . Influence Increases 459 | 5 . 5 185 259 5 Destroy 0b10 Robot/C 140 | . . . 80 60 . Destroy 0b10 Robot/NC 15 | 5 . 5 . . 5 Successful Hack 18 | . . . . 18 . Select Force Hacks 180 | . . . . 180 . Destroy Structure 1 | . . . . 1 . Lose Combat Pursuer 105 | . . . 105 . . Influence Decreases 459 | 5 . 5 25 419 5 Entered New Map 84 | . . . . 84 . Time Decay 360 | 5 . 5 15 335 . Lost Part 15 | . . . 10 . 5 Squads Dispatched . | . . . . . . Investigation . | . . . . . . Extermination . | . . . . . . Reinforcement . | . . . . . . Assault . | . . . . . . Garrison . | . . . . . . Intercept . | . . . . . . Searches Triggered . | . . . . . . Construction Impeded . | . . . . . . Haulers Reinforced . | . . . . . . Active Scanning Responses . | . . . . . . Cargo Convoy Interrupts . | . . . . . . Stealth | -11 -10 -10 -10 -8 -8 --------- Run | Yrd Mat Min Sub Rec Scr Distress Signals . | . . . . . . Communications Jammed . | . . . . . . Distress Signals . | . . . . . . Times Spotted 53 | . . . 20 1 32 Peak Tracking Total 7 | . 3 . 4 . 7 Tactical Retreats 2 | . . . 2 . . Traps | -11 -10 -10 -10 -8 -8 ------- Run | Yrd Mat Min Sub Rec Scr Traps Triggered . | . . . . . . Indirectly . | . . . . . . Trap Hack Attempts . | . . . . . . Triggered . | . . . . . . Disarmed . | . . . . . . Reprogrammed . | . . . . . . Reused . | . . . . . . Traps Extracted . | . . . . . . Installed . | . . . . . . Triggered . | . . . . . . Machines | -11 -10 -10 -10 -8 -8 ---------- Run | Yrd Mat Min Sub Rec Scr Machines Disabled 12 | . . . 4 . 8 Max in Single Turn 3 | . . . 3 . 1 Machines Repaired . | . . . . . . Machines Dismantled . | . . . . . . Machines Sabotaged . | . . . . . . Overloaded Fab Kills . | . . . . . . Hacking | -11 -10 -10 -10 -8 -8 --------- Run | Yrd Mat Min Sub Rec Scr Machines Accessed 18 | . 1 . 2 12 3 Terminals 7 | . 1 . . 6 . Fabricators . | . . . . . . Repair Stations . | . . . . . . Recycling Units 6 | . . . . 6 . Scanalyzers . | . . . . . . Garrison Access . | . . . . . . Total Hacks 69 | . 3 . 4 33 29 Successful 56 | . . . 4 23 29 Failed 13 | . 3 . . 10 . Catastrophic 3 | . 2 . . 1 . Database Lockouts . | . . . . . . Manual 26 | . 3 . . 23 . Terminals 23 | . 3 . . 20 . Fabricators . | . . . . . . Repair Stations . | . . . . . . Recycling Units 13 | . . . . 13 . Scanalyzers . | . . . . . . Garrison Access . | . . . . . . Terminal Hacks 36 | . . . 4 3 29 Record 32 | . . . 3 . 29 Part Schematic 1 | . . . . 1 . Prototype ID Bank 1 | . . . . 1 . Terminal Index 1 | . . . . 1 . Proto ID Catalog 1 | . . . 1 . . Fabricator Hacks . | . . . . . . Repair Station Hacks . | . . . . . . Recycling Unit Hacks 7 | . . . . 7 . Report Inventory 6 | . . . . 6 . Retrieve Components 1 | . . . . 1 . Scanalyzer . | . . . . . . Garrison Access Hacks . | . . . . . . Unauthorized Hacks 13 | . . . . 13 . Terminals 7 | . . . . 7 . Botnet 2 | . . . . 2 . Skim 5 | . . . . 5 . Fabricators . | . . . . . . Repair Stations . | . . . . . . Recycling Units 6 | . . . . 6 . Tunnel 6 | . . . . 6 . Scanalyzers . | . . . . . . Garrison Access . | . . . . . . Data Cores Recovered . | . . . . . . Used . | . . . . . . Hacking Detections 8 | . 1 . . 7 . Full Trace Events 1 | . 1 . . . . Feedback Events . | . . . . . . Feedback Blocked . | . . . . . . Robot Schematics Acquired . | . . . . . . Robots Built . | . . . . . . Authchips . | . . . . . . Time . | . . . . . . Total Robot Build Rating . | . . . . . . Part Schematics Acquired 1 | . . . . 1 . Parts Built . | . . . . . . Authchips . | . . . . . . Time . | . . . . . . Total Part Build Rating . | . . . . . . Part Studies Acquired . | . . . . . . Parts Repaired . | . . . . . . Time . | . . . . . . Parts Recycled . | . . . . . . Recycled Matter . | . . . . . . Retrieved Matter . | . . . . . . Retrieved Components 3 | . . . . 3 . Parts Scanalyzed . | . . . . . . Part Schematics Acquired . | . . . . . . Parts Damaged . | . . . . . . Bothacking | -11 -10 -10 -10 -8 -8 ------------ Run | Yrd Mat Min Sub Rec Scr Used RIF Installer . | . . . . . . Robots Hacked 1 | . . . . . 1 Non-combat . | . . . . . . Combat 1 | . . . . . 1 Robot Hacks Applied 1 | . . . . . 1 parse_system 1 | . . . . . 1 Relay Couplers Released . | . . . . . . Fabnet Peak Effective % . | . . . . . . Robots Rewired . | . . . . . . Allies Hacked . | . . . . . . Hacks Repelled . | . . . . . . Allies | -11 -10 -10 -10 -8 -8 -------- Run | Yrd Mat Min Sub Rec Scr Total Allies 5 | . . . . . 5 Largest Group 5 | . . . . . 5 Highest-Rated Group 238 | . . . . . 238 Highest-Rated Ally 50 | . . . . . 50 Total Orders . | . . . . . . Ally Attacks 122 | . . . . . 122 Total Damage 2200 | . . . . . 2200 Kills 21 | . . . . . 21 Allies Corrupted . | . . . . . . Allies Melted 8 | . . . . . 8 Intel | -11 -10 -10 -10 -8 -8 ------- Run | Yrd Mat Min Sub Rec Scr Active Infowar (turns) 408 | 8 104 231 65 . . Seismic 408 | 8 104 231 65 . . Robot Analysis Total . | . . . . . . Derelict Logs Recovered 7 | . . 1 1 . 5 Drone Launches . | . . . . . . Drone Recoveries . | . . . . . . Exploration | -11 -10 -10 -10 -8 -8 ------------- Run | Yrd Mat Min Sub Rec Scr Turns Passed 11319 | 77 104 231 1967 2014 6926 Spaces Moved 4719 | 55 84 180 902 440 3058 Core 13 | 13 . . . . . Treads . | . . . . . . Legs 3409 | 42 84 180 902 440 1761 Wheels 1297 | . . . . . 1297 Hover . | . . . . . . Flight . | . . . . . . Fastest Speed 50 | 50 120 120 120 330 90 Average Speed 206 | 103 120 120 188 330 203 Slowest Speed 400 | 120 120 120 400 330 330 Overloaded Moves . | . . . . . . Propulsion Burnouts . | . . . . . . Robots Hopped . | . . . . . . Potential Cave-ins . | . . . . . . Cave-ins Triggered . | . . . . . . Exploration Rate (%) 51 | 3 20 38 62 97 86 Regions Visited 5 Branch Regions 4 Pre-discovered Areas 10 | . . . . 7 3 Known Exits Taken 1 | . . . . 1 . Unknown Exits Taken 4 | 1 1 1 1 . . Scrap Searched 7 | . . 1 3 . 3 Spaces Dug 9 | . . . . . 9 Terrain Destroyed 113 | . . . 97 1 15 Melee . | . . . . . . Projectile 15 | . . . . 1 14 AOE 97 | . . . 97 . . Terrain Rammed . | . . . . . . Walls Destroyed . | . . . . . . Machines Disabled . | . . . . . . Actions | -11 -10 -10 -10 -8 -8 --------- Run | Yrd Mat Min Sub Rec Scr Total 6142 | 71 87 187 1073 999 3725 Wait 1162 | . . 2 78 546 536 Move 4714 | 54 83 179 901 439 3058 Hop . | . . . . . . Pick Up 57 | 9 2 2 15 4 25 Fast Attach 17 | . 1 . 3 1 12 Attach 15 | 6 . . 3 . 6 Detach 2 | . . . . . 2 Swap 11 | . . . 10 1 . Drop 41 | . 1 . 9 5 26 Fire 122 | 2 . 4 54 3 59 Melee 1 | . . . . . 1 Ram . | . . . . . . Kick . | . . . . . . Crush . | . . . . . . Escape Stasis . | . . . . . . Rewire . | . . . . . . Trap . | . . . . . . Miscellaneous . | . . . . . . Route ------- -11/Scrapyard -10/Materials -10/Mines (discovered 2 exits: [*Mat] / *Sub) -10/Subcaves (discovered 3 exits: [*Mat x2] / *Rec) -8/Recycling (discovered 2 exits: *Fac / *Scr) -8/Scraptown (discovered 2 exits: *Fac x2) History --------- Turn | Location | Event 2 | -11/Scrapyard | Met Revision 17 6 | -11/Scrapyard | Discovered new exit (range 16) 78 | -11/Scrapyard | Entered Materials 139 | -10/Materials | Discovered new exit (range 8) 182 | -10/Materials | Entered Mines 313 | -10/Mines | Build established: Mutant 370 | -10/Mines | Discovered new exit (range 10) 379 | -10/Mines | Discovered new exit (range 10) 413 | -10/Mines | Entered Subcaves 474 | -10/Subcaves | Disturbed a concealed Subdweller 595 | -10/Subcaves | Learned Materials terminal intel 811 | -10/Subcaves | Discovered new exit (range 10) 870 | -10/Subcaves | Lost 3 parts (1p2w) 1265 | -10/Subcaves | Discovered new exit (range 8) 1283 | -10/Subcaves | Shifting Twisted Machinery released Shrapnel Trap 1284 | -10/Subcaves | Shifting Twisted Machinery released Spk. Treads 1345 | -10/Subcaves | Visited Clippyterm 1350 | -10/Subcaves | Learned Research security intel 1518 | -10/Subcaves | A Subdweller sparked back to life 1518 | -10/Subcaves | A Subdweller sparked back to life 1562 | -10/Subcaves | Found Prototype Device 1797 | -10/Subcaves | Visited 4L-MR0's lab 1806 | -10/Subcaves | Identified Power Bank 1825 | -10/Subcaves | Found Powered Cannon 2344 | -10/Subcaves | Discovered new exit (range 12) 2380 | -10/Subcaves | Entered Recycling 3728 | -8/Recycling | Discovered new exit (range 10) 3781 | -8/Recycling | Scanned before Scraplab entrance 3863 | -8/Recycling | Identified exit to Scraptown 3876 | -8/Recycling | Entered Scraplab 3922 | -8/Recycling | Learned location of 1 exit from Extension 3972 | -8/Recycling | Learned 2 Storage zone layouts 4010 | -8/Recycling | Learned Factory security intel 4036 | -8/Recycling | Learned Storage security intel 4239 | -8/Recycling | Learned Storage trap positions 4394 | -8/Recycling | Entered Scraptown 4395 | -8/Scraptown | Identified exit to Factory 4903 | -8/Scraptown | Visited Fellowship of the Rings 4929 | -8/Scraptown | Visited Cyclists 4972 | -8/Scraptown | Visited Spacefarers 5018 | -8/Scraptown | Visited Junk Repository 5992 | -8/Scraptown | Heard Great Nut preacher, LISTEN AND RECITE! 6015 | -8/Scraptown | Scanned Subdweller tech in exchange for log data 6021 | -8/Scraptown | Learned Factory interactive machine intel 6025 | -8/Scraptown | Learned Factory stockpile data 6028 | -8/Scraptown | Learned Research trap positions 6031 | -8/Scraptown | Learned location of 1 exit from Research 6035 | -8/Scraptown | Learned 12 Research zone layouts 6196 | -8/Scraptown | Visited UFD Registry 6196 | -8/Scraptown | Registered with UFD as "Fibermachine" 6266 | -8/Scraptown | Visited Derelict Rescue Squad 6312 | -8/Scraptown | Visited Observation Area 6398 | -8/Scraptown | Visited Scrapoid Pod Storage 6440 | -8/Scraptown | Visited Scrap Suit Storage 6490 | -8/Scraptown | Visited A0-MCA Data Center 6523 | -8/Scraptown | Visited Cartography Club 6572 | -8/Scraptown | Visited Infowarlord's Domain 6625 | -8/Scraptown | Visited Abandonware Association 6658 | -8/Scraptown | Learned abandonware demo "SHUTEYE.EXE" 6658 | -8/Scraptown | Learned abandonware demo "ERRANTS.EXE" 6737 | -8/Scraptown | Visited Curators Association 7031 | -8/Scraptown | Delivered Scrap Shield to a Scientist 8227 | -8/Scraptown | Guru changed UFD alias to "Cryoroller" 8557 | -8/Scraptown | Visited SPCMW 8865 | -8/Scraptown | Found Scrapoid Pod 8994 | -8/Scraptown | Learned location of Lower Caves (-7) 8994 | -8/Scraptown | Learned location of Armory (-4) 8994 | -8/Scraptown | Learned 8 Lower Caves zone layouts 8994 | -8/Scraptown | Learned 4 Storage zone layouts 8994 | -8/Scraptown | Learned 20 Lower Caves zone layouts 8994 | -8/Scraptown | Learned 8 Proximity Caves zone layouts 8994 | -8/Scraptown | Learned 4 Armory zone layouts 8994 | -8/Scraptown | Learned 20 Proximity Caves zone layouts 8994 | -8/Scraptown | Learned location of 1 exit from Research 8994 | -8/Scraptown | Learned location of 3 exits from Lower Caves 9042 | -8/Scraptown | Found Deep Structural Scanner 9254 | -8/Scraptown | Entered Cyclist Reading Room 10039 | -8/Scraptown | Visited TADAMA 10252 | -8/Scraptown | Given a C+ rating by A0-MCA 10258 | -8/Scraptown | Found A0-MCA's Component Scanner 10372 | -8/Scraptown | Found Exp. Terrain Scanner 10430 | -8/Scraptown | Met Optimus 10430 | -8/Scraptown | Accepted into 0bPrime 10465 | -8/Scraptown | Visited LU-1G1's Boring Crew 10830 | -8/Scraptown | Civil war broke out across Scraptown 10832 | -8/Scraptown | Attached CPS modules to Optimus. 10840 | -8/Scraptown | Found Prototype Special Weapon 10840 | -8/Scraptown | Identified LU-1G1's Laser Shovel 10877 | -8/Scraptown | Scrapoid Pod released 08S05-D (x5) 10913 | -8/Scraptown | Lost 5 allies 10925 | -8/Scraptown | Found Scrapoid Pod 10928 | -8/Scraptown | Found Scrapoid Pod 10992 | -8/Scraptown | Lost 3 allies 11020 | -8/Scraptown | Attached Powered Cannon, gained temporary slot: Power 11021 | -8/Scraptown | Found Ballwheel 11041 | -8/Scraptown | Optimus destroyed in the chaos of civil war 11228 | -8/Scraptown | Core integrity fell below 50% 11241 | -8/Scraptown | Found PL-3XN's Ring of Power 11250 | -8/Scraptown | Destroyed 9 combat bots 11279 | -8/Scraptown | Core integrity fell below 20% 11302 | -8/Scraptown | Lost 3 allies 11320 | -8/Scraptown | Destroyed by L9-47P(g) with Salvaging Laser Last Messages --------------- 11291_ Tractor Beam melted. 11296_ Lgt. Ion Engine fries itself beyond repair. 11296_ Sml. Storage Unit fries itself beyond repair. 11296_ Dropped Broken Ovr. Titanium Leg. 11298_ Acquired Ovr. Titanium Leg. 11300_ Bolt penetrates Wall. 11301_ Ovr. Titanium Leg suddenly begins malfunctioning. 11308_ Bolt penetrates Wall. 11310_ O4-VNL(j) destroyed. 11312_ O8-01E(j) cannibalizes Lgt. Deuterium Engine to repair Lgt. Deuterium Engine. 11313_ Destroyed Lgt. Deuterium Engine. 11313_ O8-01E(j) suffers critical hit (Meltdown). 11313_ Ovr. Titanium Leg melted. 11313_ Mak. Salvage Targeting Computer melted. 11313_ Mak. Microdissipator Network melted. 11315_ Bolt penetrates Wall. 11317_ ZN-ZEM(j) destroyed. 11318_ Bolt penetrates Wall. 11320_ Powered Cannon destroyed. Map ----- +----------------------------------------------------+ | #?????????## ##????????#" "#??????????????? | | "?????#????# #########?#" ""#??????????????? | | " ????? ??# """"""""#?#" """#??????????????? | | "??### ### " ""#?#" """#??????????????? | | " ??#"" """ "#?#"""""""#??????????????? | | """"?#" """ " ""#?#########??????????????? | | ######" " % """"""""#????????????????????????? | | """"?#" !%![##"""####????????????????????????# | | " ?#" "" "!%!#######?###??????????????????????# | | "??#" !"%%[#= #??????????????????????# | | " ???#""""""==![=!! #?????"??""????????????# | | "????######[![=![!""""" #????? " "?????????# | | #????#???#!#![===!" "" #????""" " """#????????# | | ######[###!#!%![%%"="" #????""" " """#????????# | | !=[%=*=&!![=[=%=* #????? "#????????# | | =!![%!%*!%=!!%== #??????? """#????????# | | ##########%=[=![[*%%[[%[! ###????? #????????# | | ????????###!%[!!!=[*!!*=[*# ##???"""""""#????????# | | ???????##=!=*[!%*=!*[!!!![#!"####;#### ####??????? | | ?????### [%=*%%[*!%==[[!=%!=!*%!%*= #??????? | | ?????# [===%/[=%![%=*%=*=[=!!=!![ #??????? | | ##########!![!%*=!!! %==%!%!%![%%= ! !#??????? | | # !#%!=!=%=!!!=!*[%==!!*%!/ [%=%#??????? | | # %!%=![=[!=%=[!%!/[*[%!/* !!!*#??????? | | # #*!!=!##########g%!!!=#! #???#### | | # /=#!%!%![#???##!=@j!!!*%;%! !#???#""" | | # !=#%*[*!"#???# !""=!""![#=%= !%#???#""" | | " !=!%===!=##???# ""!=!!"" #[! #???#""" | | # [!=!%![![#????# " [%= " # #???#""" | | # %[#* !! #????# " m " ; #???#""" | | # =*#%!!! #????# " t # = [ ###?#""" | | #########?# == #????# " " # !%*%=* ""#"#""" | | ###########[ #????# "" "" #!=[ =!%= """"#""" | | " X "#""" #=![= #????# """""" #% [ ""###### | | " ## # !%!#????## ##=% =!= ###????? | | #X %=#=%*! #?????########### !%[! ######## | | " ## * % ! #???????????????# [%* [%% | | """ "# [*%= #???????????????# ! [=!! | | ###### #%! #???????????????# !!! !%[ %! | | ?????# #=! #??????????###### [%! *= =[* | | ?????# # ############=##"# %= !%! | | ?????# # ! % =* | | ?????#"X" #[! =!!=%= [ | | ?????######%! =!%=* !!==*==[! | | ??????????#=! %= *%!** !!! *%*%=*%!%==[ | | ????####### !* !!!= !=!%=!!!!%=! =%!%= | | ???## = !%!%!===!%*==%=! !!/#"""" | | ???#!%*[% %[ %=[ *%=!=%[*!%!== %/% #???? | | #####![!*! =!%!%* *=! !!! #???? | | =*!###### "#"###"#"""#"=##!"##"###*!%==##???? | +----------------------------------------------------+ Best States ------------- Heat Dissipation 25 Energy Generation 25 Energy Capacity 330 Matter Stores 400 Matter Capacity 400 Sight Range 16 Terrain Scan Density 10 Armor Coverage 150 Evasion (%) 55 Authchip Count 2 Item Schematics ----------------- Huge Storage Unit | -8/Recycling | Hacked Robot Schematics ------------------ None Fabricated ------------ Nothing Repaired ---------- Nothing Studied --------- None Alien Tech Used ----------------- None Achievements -------------- None Challenges ------------ None Game ------ Seed CarbideMatterBiocell Manual? 0 Play Time 00:51:42 Cumulative 1027.6 hours Start 2025.11.02 @ 08:01:59 End 2025.11.02 @ 09:06:27 Sessions 2 Manual Loads 0 Difficulty Rogue Special Mode None Game No. 374 Rogue 369 Adventurer 4 Explorer 1 Win Type - Total 21 Types 13/3/1/1/0/1/0/0/1/1 Lore% 96 Gallery% 94 Achievement% 79 Wizard Run 0 Options --------- Layout 0 ASCII 0 Keyboard 0 Movement Numpad Keybinds 0 Fullscreen 2 Font 18/SmallcapsGlow Map View 76x50 Zoom Use 0% Tactical HUD 1 Map Filters NONE Filters NONE Steam 1 RUN: f2089786-e742-4e11-8c7a-d8aaf83af0ec